bitfinex-derivatives/quotes_BTCF0:USTF0_20240820
["timestamp","ask_amount","ask_price","bid_price","bid_amount"]
[1724168105485,0.007,59088.0,59087.0,4.19873485]
[1724168105687,0.00819243,59093.0,59092.0,0.067675]
[1724168105890,0.17025385,59093.0,59092.0,0.067675]
[1724168106689,0.23792785,59093.0,59092.0,0.067675]
[1724168106992,0.82328185,59093.0,59092.0,0.001]
[1724168107297,0.76327791,59093.0,59087.0,0.0508524]
[1724168107480,0.06768,59088.0,59087.0,0.0508524]
[1724168107684,0.22768,59088.0,59087.0,0.0508524]
[1724168108085,0.22768,59088.0,59087.0,0.00025385]
[1724168108383,0.22668,59088.0,59087.0,0.00025385]
[1724168108984,0.161,59088.0,59087.0,0.06793485]
[1724168109185,0.161,59088.0,59087.0,0.13537242]
[1724168109381,0.161,59088.0,59087.0,0.49617242]
[1724168109591,0.161,59088.0,59087.0,0.42873485]
[1724168109984,0.161,59088.0,59087.0,0.49641585]
[1724168110179,0.001,59088.0,59087.0,4.26641585]
[1724168110385,0.87655385,59102.0,59092.0,0.067675]
[1724168110585,0.87655385,59102.0,59096.0,0.05064272]
[1724168110586,0.51879628,59101.0,59096.0,0.05064272]
[1724168110887,0.51879628,59101.0,59097.0,0.33444272]
[1724168111394,0.067667,59100.0,59098.0,0.05064272]
[1724168111590,0.067667,59099.0,59098.0,0.05064272]
[1724168111786,0.067667,59099.0,59093.0,0.067673]
[1724168111787,0.067669,59098.0,59097.0,0.05064272]
[1724168111986,0.207669,59098.0,59097.0,0.05064272]
[1724168112198,0.207669,59098.0,59096.0,0.001]
[1724168112492,0.207669,59098.0,59097.0,0.06867]
[1724168113098,0.210669,59098.0,59097.0,0.06867]
[1724168113602,0.143,59098.0,59097.0,0.06867]
[1724168113799,0.142,59098.0,59097.0,0.06867]
[1724168114493,0.142,59098.0,59097.0,0.42579363]
[1724168114692,0.152,59098.0,59097.0,0.42679363]
[1724168115806,0.013,59098.0,59097.0,0.72007]
[1724168116511,0.00025385,59105.0,59104.0,0.067662]
[1724168116813,0.17025385,59105.0,59104.0,0.067662]
[1724168117000,0.00172001,59114.0,59102.0,0.73620454]
[1724168117202,0.16,59114.0,59113.0,0.428451]
[1724168117409,0.00172001,59122.0,59113.0,0.643]
[1724168117716,0.00172001,59122.0,59121.0,0.067642]
[1724168117717,0.17,59122.0,59121.0,0.067642]
[1724168117905,0.17,59122.0,59121.0,0.11822237]
[1724168118103,0.17,59122.0,59121.0,0.067642]
[1724168118501,0.17,59122.0,59121.0,0.11817745]
[1724168118712,0.17781105,59122.0,59121.0,0.11817745]
[1724168118908,0.17781105,59122.0,59121.0,0.068642]
[1724168119109,0.17781105,59122.0,59121.0,3.8891768]
[1724168119316,0.17781105,59122.0,59121.0,3.88917818]
[1724168119512,0.17781105,59122.0,59121.0,3.838642]
[1724168121310,0.17781105,59122.0,59121.0,0.001]
[1724168121611,0.17781105,59122.0,59116.0,0.00025385]
[1724168121612,1.39705105,59122.0,59116.0,0.00025385]
[1724168121919,1.285927,59117.0,59116.0,0.00025385]
[1724168122107,0.948447,59117.0,59116.0,0.00025385]
[1724168122302,1.455927,59117.0,59116.0,0.00025385]
[1724168122507,1.523574,59117.0,59116.0,0.00025385]
[1724168122706,0.067654,59111.0,59110.0,0.05053618]
[1724168122912,0.588654,59111.0,59110.0,0.05053618]
[1724168123224,0.067656,59110.0,59107.0,0.05053618]
[1724168123410,0.237656,59110.0,59107.0,0.05053618]
[1724168123715,0.235656,59110.0,59107.0,0.05053618]
[1724168125418,0.779457,59108.0,59107.0,0.05053618]
[1724168125716,0.067669,59098.0,59092.0,0.46201872]
[1724168125907,0.237669,59098.0,59092.0,0.46201872]
[1724168126712,0.237669,59098.0,59092.0,0.46227257]
[1724168127717,0.237669,59098.0,59093.0,3.77]
[1724168128015,0.237669,59098.0,59093.0,3.837674]
[1724168128217,0.24647391,59098.0,59093.0,3.837674]
[1724168128720,0.24647391,59098.0,59097.0,0.001]
[1724168129310,0.24847391,59098.0,59094.0,0.0678135]
[1724168131227,0.24747391,59098.0,59094.0,0.0678135]
[1724168131415,0.25047391,59098.0,59094.0,0.0678135]
[1724168132114,0.24847391,59098.0,59094.0,0.0678135]
[1724168132314,0.18280491,59098.0,59097.0,0.06767]
[1724168132621,0.18280491,59098.0,59097.0,0.42847]
[1724168133518,0.175,59098.0,59097.0,0.42847]
[1724168133723,0.002,59098.0,59097.0,0.49614]
[1724168133920,0.005,59098.0,59097.0,0.42947]
[1724168134219,0.155,59098.0,59097.0,0.42947]
[1724168134607,0.154,59098.0,59097.0,0.42947]
[1724168134814,0.154,59098.0,59097.0,0.06867]
[1724168135013,0.16175847,59098.0,59097.0,0.001]
[1724168135222,0.65789647,59098.0,59097.0,0.001]
[1724168135409,0.65789647,59098.0,59092.0,0.00025385]
[1724168135410,0.135348,59093.0,59092.0,0.00025385]
[1724168135615,0.636148,59093.0,59092.0,0.00025385]
[1724168135816,0.568474,59093.0,59092.0,0.00025385]
[1724168136318,0.5676145,59093.0,59092.0,0.00025385]
[1724168136831,0.5666145,59093.0,59092.0,0.00025385]
[1724168137221,0.5686145,59093.0,59092.0,0.00125385]
[1724168137912,0.6362885,59093.0,59092.0,0.00125385]
[1724168138113,0.6362885,59093.0,59048.0,0.067725]
[1724168138114,0.06769,59080.0,59073.0,0.067696]
[1724168138325,0.351,59077.0,59070.0,0.296]
[1724168138527,0.17,59077.0,59075.0,0.067694]
[1724168139017,0.0001405,59079.0,59075.0,0.067694]
[1724168139216,0.0001405,59079.0,59074.0,3.77088]
[1724168139217,0.1601405,59079.0,59074.0,3.77088]
[1724168139518,0.3608,59077.0,59074.0,3.77]
[1724168139823,0.427493,59077.0,59075.0,0.001]
[1724168140018,0.3598,59077.0,59075.0,0.001]
[1724168140330,0.0001405,59079.0,59075.0,0.001]
[1724168140519,0.0001405,59079.0,59077.0,0.3608]
[1724168140715,0.0001405,59079.0,59078.0,0.418692]
[1724168141420,0.00025385,59082.0,59081.0,0.067688]
[1724168142127,0.067677,59091.0,59087.0,0.067681]
[1724168142321,0.217677,59091.0,59088.0,0.5662]
[1724168142521,0.067678,59090.0,59088.0,0.5662]
[1724168142721,0.237678,59090.0,59088.0,0.5662]
[1724168143619,0.17,59090.0,59089.0,0.067679]
[1724168144024,0.175,59090.0,59089.0,0.067679]
[1724168144325,0.175,59090.0,59088.0,0.5662]
[1724168144524,0.175,59090.0,59088.0,0.2912]
[1724168144726,0.242678,59090.0,59088.0,0.2912]
[1724168144927,0.248678,59090.0,59088.0,0.2912]
[1724168145424,0.247678,59090.0,59088.0,0.2912]
[1724168145625,0.067679,59089.0,59088.0,0.2912]
[1724168145922,0.17,59089.0,59088.0,0.2912]
[1724168146525,0.009,59090.0,59088.0,0.79892]
[1724168146719,0.008,59090.0,59089.0,0.428479]
[1724168146915,0.003,59090.0,59089.0,0.428479]
[1724168147116,0.007,59090.0,59089.0,0.428479]
[1724168147522,0.004,59090.0,59089.0,0.428479]
[1724168148628,0.067674,59094.0,59091.0,0.067676]
[1724168149329,0.067674,59094.0,59089.0,0.3608]
[1724168149330,0.067674,59094.0,59092.0,0.067675]
[1724168149524,0.067674,59094.0,59093.0,3.77]
[1724168150032,0.071674,59094.0,59093.0,3.77]
[1724168150727,0.243674,59094.0,59093.0,3.771]
[1724168151628,0.181,59094.0,59093.0,3.771]
[1724168151835,0.181,59094.0,59093.0,3.838674]
[1724168152534,0.176,59094.0,59093.0,3.838674]
[1724168152730,0.181,59094.0,59093.0,3.839674]
[1724168153731,0.181,59094.0,59093.0,0.069674]
[1724168156136,0.00025385,59095.0,59094.0,0.067673]
[1724168156342,0.00025385,59095.0,59094.0,0.83877687]
[1724168156529,0.00025385,59095.0,59094.0,4.60877687]
[1724168157127,0.00025385,59095.0,59094.0,4.67644987]
[1724168158443,0.06792585,59095.0,59094.0,0.85544569]
[1724168158737,0.06792585,59095.0,59093.0,0.001]
[1724168158738,0.134346,59094.0,59093.0,0.001]
[1724168158948,0.304346,59094.0,59093.0,0.001]
[1724168159131,0.067678,59090.0,59089.0,0.428478]
[1724168159336,0.216678,59090.0,59089.0,0.428478]
[1724168160540,0.067682,59086.0,59085.0,0.08434182]
[1724168160742,0.067683,59086.0,59084.0,0.2764]
[1724168161234,0.067684,59085.0,59084.0,0.2764]
[1724168161838,0.067684,59085.0,59084.0,0.2774]
[1724168162339,0.067684,59085.0,59082.0,0.3608]
[1724168162340,0.067685,59084.0,59082.0,0.3608]
[1724168162539,0.234685,59084.0,59082.0,0.3608]
[1724168163340,0.232685,59084.0,59082.0,0.3608]
[1724168163541,0.17,59084.0,59083.0,0.00125385]
[1724168164244,0.17,59084.0,59083.0,0.07093985]
[1724168164452,0.36892872,59088.0,59083.0,0.07093985]
[1724168164453,0.36892872,59088.0,59087.0,0.067681]
[1724168164645,0.87655385,59090.0,59088.0,0.067679]
[1724168164846,0.87655385,59090.0,59089.0,0.360579]
[1724168165050,0.3608,59093.0,59089.0,0.2929]
[1724168165346,0.5308,59093.0,59090.0,3.77]
[1724168166153,0.00025385,59095.0,59092.0,0.3608]
[1724168166450,0.3608,59107.0,59093.0,0.067674]
[1724168166746,0.58648639,59107.0,59103.0,0.067662]
[1724168168654,0.06766,59106.0,59103.0,0.067662]
[1724168168854,0.067662,59104.0,59099.0,0.00025385]
[1724168169055,0.3608,59101.0,59099.0,0.00025385]
[1724168169256,0.066666,59100.0,59099.0,0.00025385]
[1724168169451,0.206666,59100.0,59099.0,0.00025385]
[1724168169952,0.204666,59100.0,59099.0,0.00025385]
[1724168170652,0.211666,59100.0,59099.0,0.00125385]
[1724168171552,0.215666,59100.0,59099.0,0.00225385]
[1724168172451,0.214666,59100.0,59099.0,0.00225385]
[1724168173050,0.208666,59100.0,59099.0,0.00125385]
[1724168173256,0.214666,59100.0,59099.0,0.00225385]
[1724168173553,1.15888585,59100.0,59099.0,0.00225385]
[1724168173762,1.94237467,59100.0,59083.0,0.15202682]
[1724168174063,0.067682,59086.0,59083.0,0.067685]
[1724168174257,0.17,59086.0,59080.0,0.08434182]
[1724168174556,0.067686,59083.0,59078.0,0.36634182]
[1724168174760,0.06769,59080.0,59078.0,0.282]
[1724168175059,0.20769,59080.0,59078.0,0.282]
[1724168175253,0.20669,59080.0,59078.0,0.282]
[1724168175452,0.20569,59080.0,59078.0,0.282]
[1724168175956,0.20569,59080.0,59078.0,0.283]
[1724168176359,0.20569,59080.0,59078.0,0.284]
[1724168177257,0.14,59080.0,59078.0,0.351691]
[1724168177861,0.20769,59080.0,59078.0,0.284]
[1724168178549,0.42849,59079.0,59078.0,0.002]
[1724168178757,0.56849,59079.0,59078.0,0.002]
[1724168179554,0.56849,59079.0,59078.0,0.001]
[1724168179759,0.56849,59079.0,59078.0,0.002]
[1724168180162,0.5008,59079.0,59078.0,0.002]
[1724168180458,0.14,59079.0,59078.0,0.430492]
[1724168181149,0.14,59079.0,59078.0,3.839692]
[1724168181862,0.20769,59079.0,59078.0,3.772]
[1724168182959,0.56849,59079.0,59078.0,0.002]
[1724168183963,0.63618,59079.0,59078.0,0.002]
[1724168184266,0.98718,59079.0,59078.0,0.002]
[1724168184468,0.91949,59079.0,59078.0,0.002]
[1724168184970,0.56849,59079.0,59078.0,0.002]
[1724168185166,0.20769,59079.0,59078.0,0.002]
[1724168186270,0.56849,59079.0,59078.0,0.002]
[1724168187668,1.49498,59079.0,59078.0,0.002]
[1724168187967,0.98718,59079.0,59078.0,0.002]
[1724168188168,1.49498,59079.0,59078.0,0.002]
[1724168188562,0.98718,59079.0,59078.0,0.002]
[1724168189067,0.91949,59079.0,59078.0,0.002]
[1724168189265,0.56849,59079.0,59078.0,0.002]
[1724168189964,0.63618,59079.0,59078.0,0.002]
[1724168190365,1.14398,59079.0,59078.0,0.002]
[1724168190659,0.63618,59079.0,59078.0,0.002]
[1724168192174,0.56849,59079.0,59078.0,0.002]
[1724168192372,0.63618,59079.0,59078.0,0.002]
[1724168192569,0.56849,59079.0,59078.0,0.002]
[1724168192969,0.63618,59079.0,59078.0,0.002]
[1724168193767,0.56849,59079.0,59078.0,0.002]
[1724168193969,0.63618,59079.0,59078.0,0.002]
[1724168195273,0.56849,59079.0,59078.0,0.002]
[1724168195473,0.63618,59079.0,59078.0,0.002]
[1724168195663,0.56849,59079.0,59078.0,0.002]
[1724168195868,0.14,59079.0,59078.0,0.069692]
[1724168197464,0.14,59079.0,59078.0,0.430492]
[1724168197672,0.14,59079.0,59078.0,0.49787299]
[1724168198370,0.14,59079.0,59078.0,0.430492]
[1724168199076,0.14,59079.0,59078.0,0.069692]
[1724168199477,0.14,59079.0,59078.0,0.430492]
[1724168200566,0.20769,59079.0,59078.0,0.3628]
[1724168200774,0.20769,59079.0,59078.0,0.002]
[1724168201969,0.09766891,59079.0,59078.0,0.430492]
[1724168203566,0.09766891,59079.0,59078.0,0.64377566]
[1724168204369,0.09766891,59079.0,59078.0,0.55943384]
[1724168204872,0.09766891,59079.0,59078.0,0.64395385]
[1724168205078,0.09766891,59079.0,59078.0,0.55943384]
[1724168205870,0.09766891,59079.0,59078.0,0.64395171]
[1724168206478,0.16535891,59079.0,59078.0,0.64395171]
[1724168206777,0.16535891,59079.0,59078.0,0.069692]
[1724168206972,0.09766891,59079.0,59078.0,0.430492]
[1724168207280,0.09766891,59079.0,59078.0,0.51500987]
[1724168207579,0.09766891,59079.0,59078.0,0.64395071]
[1724168207966,0.09766891,59079.0,59078.0,0.51500987]
[1724168208280,0.09766891,59079.0,59078.0,0.64395069]
[1724168208482,0.09766891,59079.0,59078.0,0.51500987]
[1724168208979,0.06768,59089.0,59079.0,0.06769]
[1724168209172,0.00792253,59090.0,59085.0,0.3608]
[1724168209367,0.15,59090.0,59089.0,0.067679]
[1724168209570,0.15,59090.0,59089.0,3.837679]
[1724168209767,0.15,59090.0,59089.0,3.96659699]
[1724168210373,0.15,59090.0,59089.0,3.92211212]
[1724168210777,0.15,59090.0,59089.0,3.96659138]
[1724168211179,0.3608,59107.0,59106.0,0.067659]
[1724168211381,0.5008,59107.0,59106.0,0.067659]
[1724168212082,0.5088601,59107.0,59106.0,0.067659]
[1724168212985,0.1540601,59107.0,59106.0,0.068659]
[1724168213375,0.1610601,59107.0,59106.0,0.069659]
[1724168213577,0.153,59107.0,59106.0,0.069659]
[1724168213775,0.0001688,59112.0,59111.0,0.067654]
[1724168214277,0.304682,59122.0,59116.0,0.067648]
[1724168214480,0.37704,59122.0,59117.0,0.2637]
[1724168214672,0.37704,59122.0,59120.0,0.067643]
[1724168214986,0.38523639,59122.0,59120.0,0.066643]
[1724168215884,0.15419639,59122.0,59121.0,0.067642]
[1724168216087,0.006,59122.0,59121.0,0.067642]
[1724168216280,0.006,59122.0,59121.0,0.428442]
[1724168216476,0.3608,59126.0,59125.0,0.067638]
[1724168216873,0.36913702,59126.0,59125.0,0.067638]
[1724168217482,0.36913702,59126.0,59125.0,3.837638]
[1724168218186,0.36913702,59126.0,59125.0,3.838638]
[1724168219086,0.573022,59139.0,59125.0,3.771]
[1724168219288,0.067623,59138.0,59131.0,0.3608]
[1724168219486,0.14,59138.0,59132.0,0.2706]
[1724168219785,0.14,59138.0,59132.0,0.338229]
[1724168219991,0.067626,59136.0,59132.0,0.338229]
[1724168220187,0.14,59136.0,59132.0,0.2706]
[1724168220486,0.00820488,59138.0,59132.0,0.2706]
[1724168220686,0.16,59138.0,59132.0,0.2706]
[1724168221081,0.7118,59135.0,59132.0,0.2706]
[1724168221279,0.06763,59132.0,59129.0,0.00025385]
[1724168221480,0.3598,59130.0,59129.0,0.00025385]
[1724168221983,0.3588,59130.0,59129.0,0.00025385]
[1724168222181,0.00813716,59138.0,59129.0,0.36105385]
[1724168222377,0.067625,59137.0,59133.0,0.067628]
[1724168222584,0.067626,59136.0,59130.0,0.3608]
[1724168222782,0.067632,59130.0,59129.0,0.00125385]
[1724168223087,0.588632,59130.0,59129.0,0.00125385]
[1724168223389,0.587632,59130.0,59129.0,1e-08]
[1724168224081,0.587632,59130.0,59129.0,0.002]
[1724168224683,0.236632,59130.0,59129.0,0.002]
[1724168224983,0.24478921,59130.0,59129.0,0.002]
[1724168225186,0.17815721,59130.0,59129.0,0.068633]
[1724168225384,0.17815721,59130.0,59129.0,0.069633]
[1724168225887,0.17815721,59130.0,59129.0,0.068633]
[1724168225888,0.00815721,59130.0,59129.0,0.068633]
[1724168226085,0.06788085,59135.0,59130.0,0.067632]
[1724168226388,0.15861477,59135.0,59133.0,0.067628]
[1724168226979,0.15861477,59135.0,59134.0,0.067627]
[1724168227777,0.15025385,59135.0,59134.0,0.067627]
[1724168227979,0.2703,59144.0,59143.0,0.067617]
[1724168228188,0.16,59144.0,59143.0,0.067617]
[1724168228790,0.16820075,59144.0,59143.0,0.067617]
[1724168229181,0.16820075,59144.0,59143.0,0.428417]
[1724168229380,0.067602,59157.0,59143.0,0.3618]
[1724168229686,0.37696,59156.0,59153.0,0.067606]
[1724168230085,0.37696,59156.0,59150.0,0.067609]
[1724168230484,0.37696,59156.0,59151.0,0.067607]
[1724168230692,0.1482734,59156.0,59148.0,0.3608]
[1724168230888,0.1482734,59156.0,59155.0,0.067603]
[1724168231277,0.0082734,59156.0,59155.0,0.067603]
[1724168231483,0.067592,59165.0,59155.0,3.77]
[1724168231792,0.17,59160.0,59155.0,3.837603]
[1724168231994,0.17839192,59160.0,59156.0,0.067602]
[1724168232181,0.17839192,59160.0,59159.0,0.067599]
[1724168232382,0.00839192,59160.0,59159.0,0.067599]
[1724168232582,0.067587,59169.0,59155.0,3.77196]
[1724168232783,0.17841833,59166.0,59155.0,3.771]
[1724168232986,0.17841833,59166.0,59161.0,0.3608]
[1724168233385,0.00841833,59166.0,59165.0,0.067592]
[1724168233589,0.23860001,59177.0,59168.0,0.067589]
[1724168233590,0.067581,59175.0,59168.0,0.067589]
[1724168233785,0.187581,59175.0,59169.0,0.428387]
[1724168234582,0.12,59175.0,59169.0,0.3608]
[1724168234783,0.00815087,59176.0,59174.0,0.3608]
[1724168234983,0.067571,59183.0,59175.0,0.067581]
[1724168235292,0.067574,59182.0,59175.0,0.067581]
[1724168235494,0.067574,59182.0,59174.0,0.3608]
[1724168235495,0.16,59182.0,59174.0,0.3608]
[1724168235695,0.3608,59175.0,59169.0,0.3628]
[1724168235995,0.588381,59175.0,59169.0,0.002]
[1724168236293,0.588381,59175.0,59155.0,0.00096]
[1724168236294,0.7992,59170.0,59155.0,0.00096]
[1724168236493,0.2848,59169.0,59155.0,0.00096]
[1724168236690,0.2848,59169.0,59154.0,0.3608]
[1724168236691,0.067602,59156.0,59154.0,0.3608]
[1724168236888,0.067603,59155.0,59149.0,0.3608]
[1724168237091,0.067604,59155.0,59149.0,0.3608]
[1724168237706,0.3598,59153.0,59143.0,0.3608]
[1724168238001,0.066609,59150.0,59144.0,0.067615]
[1724168238191,0.17,59150.0,59146.0,0.00025361]
[1724168239000,0.3608,59148.0,59146.0,0.00025361]
[1724168239193,0.588411,59148.0,59146.0,0.00025361]
[1724168240790,0.588411,59148.0,59147.0,0.0012109]
[1724168241496,0.588411,59148.0,59131.0,0.06753873]
[1724168241497,0.067623,59138.0,59131.0,0.06753873]
[1724168241696,0.5072,59147.0,59131.0,0.06753873]
[1724168241697,0.3608,59133.0,59131.0,0.06753873]
[1724168241886,0.30158875,59133.0,59129.0,0.06753873]
[1724168242086,0.30158875,59133.0,59128.0,0.06753873]
[1724168242296,0.36821775,59133.0,59130.0,0.06753873]
[1724168242486,0.36821775,59133.0,59129.0,0.06753873]
[1724168242487,0.000149,59132.0,59129.0,0.06753873]
[1724168242686,0.000149,59132.0,59128.0,0.067634]
[1724168243393,0.000149,59132.0,59128.0,0.13517273]
[1724168243993,0.000149,59132.0,59128.0,0.06753873]
[1724168244299,0.000149,59133.0,59131.0,0.13516873]
[1724168244894,0.001,59132.0,59131.0,0.06763]
[1724168245096,0.002,59132.0,59131.0,0.13516873]
[1724168245287,0.0020619,59132.0,59131.0,0.06753873]
[1724168245695,0.0020619,59132.0,59130.0,0.06753873]
[1724168245696,0.067631,59131.0,59130.0,0.06753873]
[1724168246097,0.067632,59130.0,59129.0,0.06753873]
[1724168246298,0.14,59130.0,59126.0,0.13542834]
[1724168246793,0.207632,59130.0,59127.0,0.06753873]
[1724168247096,0.067635,59128.0,59126.0,0.06779234]
[1724168247297,0.067635,59127.0,59126.0,0.06779234]
[1724168247595,0.067635,59127.0,59118.0,0.350945]
[1724168247596,0.067638,59125.0,59123.0,0.06716835]
[1724168247801,0.227638,59125.0,59124.0,0.05037771]
[1724168248190,0.067639,59124.0,59123.0,0.05037771]
[1724168248392,0.217639,59124.0,59123.0,0.05037771]
[1724168248799,0.06764,59123.0,59122.0,0.05037771]
[1724168249004,0.21764,59123.0,59122.0,0.05037771]
[1724168249306,0.066642,59121.0,59119.0,0.06716835]
[1724168249603,0.226642,59121.0,59119.0,0.06716835]
[1724168249806,0.226642,59121.0,59120.0,0.05037039]
[1724168250302,0.226642,59121.0,59119.0,0.05037039]
[1724168250706,0.067643,59120.0,59119.0,0.05037039]
[1724168250900,0.226643,59120.0,59119.0,0.05037039]
[1724168251205,0.403,59123.0,59118.0,0.36105361]
[1724168251206,0.003,59123.0,59118.0,0.36105361]
[1724168251397,0.143,59123.0,59122.0,0.11800558]
[1724168251593,0.003,59123.0,59122.0,0.11800558]
[1724168251804,0.00025361,59126.0,59123.0,0.067639]
[1724168252009,0.15025361,59126.0,59123.0,0.067639]
[1724168252295,0.15025361,59126.0,59125.0,0.428438]
[1724168252495,0.15025361,59126.0,59125.0,0.1179819]
[1724168252704,0.15025361,59126.0,59125.0,0.067638]
[1724168253108,0.00025361,59126.0,59125.0,0.067638]
[1724168253505,0.00025361,59126.0,59125.0,0.575038]
[1724168253701,1e-08,59126.0,59125.0,0.575038]
[1724168254006,1e-08,59126.0,59125.0,0.844338]
[1724168254206,0.00400001,59126.0,59125.0,0.844338]
[1724168254402,0.00400001,59126.0,59125.0,0.336938]
[1724168254600,0.00843753,59132.0,59131.0,0.067631]
[1724168254797,0.17843753,59132.0,59131.0,0.067631]
[1724168257008,0.18043753,59132.0,59131.0,0.067631]
[1724168257203,0.18043753,59132.0,59126.0,0.05034195]
[1724168257403,0.18043753,59132.0,59125.0,0.31964195]
[1724168258105,0.1720619,59132.0,59131.0,0.067631]
[1724168258307,0.00025361,59137.0,59131.0,0.067631]
[1724168258308,0.00025361,59137.0,59136.0,0.067625]
[1724168258496,0.00025361,59137.0,59136.0,0.428425]
[1724168258898,0.067608,59151.0,59136.0,0.86812]
[1724168259098,0.237608,59151.0,59143.0,0.47874585]
[1724168259305,0.237608,59151.0,59144.0,0.2768]
[1724168259899,0.067612,59148.0,59144.0,0.344416]
[1724168260208,0.217612,59148.0,59144.0,0.344416]
[1724168260809,0.00025284,59153.0,59144.0,0.32712885]
[1724168261008,0.00025284,59153.0,59151.0,0.067607]
[1724168261206,0.00025284,59153.0,59148.0,0.41112885]
[1724168261515,0.4384,59169.0,59148.0,0.41112885]
[1724168261516,0.3608,59170.0,59152.0,0.4384]
[1724168261706,0.5208,59170.0,59160.0,0.067597]
[1724168262006,0.5208,59170.0,59158.0,0.41112885]
[1724168262207,0.06759,59167.0,59158.0,0.41112885]
[1724168262405,0.3608,59164.0,59158.0,0.3608]
[1724168262604,0.067594,59163.0,59158.0,0.3608]
[1724168262800,0.3608,59164.0,59158.0,0.3608]
[1724168263105,0.5008,59164.0,59158.0,0.3608]
[1724168263506,0.14,59164.0,59158.0,0.3608]
[1724168263700,0.36909926,59170.0,59162.0,0.067595]
[1724168263906,0.51909926,59170.0,59162.0,0.067595]
[1724168265207,0.51909926,59170.0,59163.0,0.067594]
[1724168265607,0.067588,59169.0,59162.0,0.001]
[1724168265803,0.207588,59169.0,59162.0,0.001]
[1724168266013,0.067589,59168.0,59162.0,0.002]
[1724168266210,0.217589,59168.0,59162.0,0.002]
[1724168266405,0.067592,59165.0,59162.0,0.002]
[1724168266606,0.3608,59164.0,59163.0,0.001]
[1724168266912,0.5308,59164.0,59155.0,0.00025361]
[1724168267109,0.3608,59156.0,59155.0,0.00025361]
[1724168267319,1.01692,59156.0,59155.0,0.00025361]
[1724168267511,0.15,59156.0,59155.0,0.00025361]
[1724168267720,0.149,59156.0,59155.0,0.06785661]
[1724168267909,0.215602,59156.0,59155.0,0.00025361]
[1724168268301,0.22376158,59156.0,59155.0,0.00125361]
[1724168269608,0.22676158,59156.0,59155.0,0.00225361]
[1724168270920,0.15915958,59156.0,59155.0,0.00225361]
[1724168271507,0.15915958,59156.0,59155.0,0.06985661]
[1724168271712,0.15915958,59156.0,59155.0,0.00225361]
[1724168272320,0.3608,59171.0,59155.0,0.87017361]
[1724168272510,0.17,59170.0,59155.0,0.36305361]
[1724168272817,0.067596,59162.0,59156.0,0.067602]
[1724168273011,0.067596,59162.0,59155.0,0.00225361]
[1724168273012,0.067602,59156.0,59155.0,0.00225361]
[1724168273206,0.227602,59156.0,59155.0,0.00225361]
[1724168274018,0.16,59156.0,59155.0,0.00225361]
[1724168274219,0.16,59156.0,59155.0,0.00125361]
[1724168274413,0.165,59156.0,59155.0,0.06985661]
[1724168275013,0.01341258,59156.0,59155.0,0.06985661]
[1724168275213,0.005,59156.0,59155.0,0.06985661]
[1724168276311,0.005,59156.0,59155.0,0.43065661]
[1724168276512,0.005,59156.0,59155.0,0.93777661]
[1724168277416,0.067593,59164.0,59155.0,0.87017361]
[1724168277720,0.15,59164.0,59163.0,0.067594]
[1724168278117,0.06758,59176.0,59163.0,0.90708]
[1724168278319,0.06758,59176.0,59161.0,0.689]
[1724168278320,0.067581,59175.0,59167.0,0.3608]
[1724168278520,0.15,59175.0,59172.0,0.067584]
[1724168278824,0.15,59175.0,59173.0,0.067583]
[1724168279119,0.36953537,59179.0,59174.0,0.067582]
[1724168279323,0.09873537,59179.0,59175.0,0.067581]
[1724168279622,0.09873537,59179.0,59177.0,0.3608]
[1724168279812,0.00873537,59179.0,59172.0,0.3608]
[1724168280013,0.428371,59184.0,59172.0,0.3608]
[1724168280212,0.568371,59184.0,59177.0,0.3608]
[1724168280411,0.50953105,59184.0,59177.0,0.3608]
[1724168280613,0.50953105,59184.0,59181.0,0.067573]
[1724168281515,0.50953105,59184.0,59178.0,0.2394]
[1724168281711,0.50953105,59184.0,59175.0,0.001]
[1724168281922,0.067579,59176.0,59175.0,0.001]
[1724168282316,0.2358,59183.0,59175.0,0.001]
[1724168282520,0.067578,59177.0,59175.0,0.001]
[1724168282914,0.067578,59177.0,59172.0,0.3608]
[1724168283311,0.3608,59179.0,59172.0,0.3608]
[1724168283617,0.36953105,59184.0,59183.0,0.067571]
[1724168283921,0.2309,59198.0,59178.0,0.2193]
[1724168283922,0.067568,59186.0,59178.0,0.2193]
[1724168284119,0.217568,59186.0,59178.0,0.2193]
[1724168284419,0.067573,59182.0,59179.0,0.067576]
[1724168284724,0.7408,59189.0,59177.0,0.428378]
[1724168284725,0.067572,59183.0,59177.0,0.428378]
[1724168284920,0.067572,59183.0,59176.0,0.00025361]
[1724168284921,0.067577,59178.0,59176.0,0.00025361]
[1724168285424,0.237577,59178.0,59176.0,0.00025361]
[1724168285613,0.17,59178.0,59176.0,0.00025361]
[1724168286020,0.3608,59177.0,59176.0,0.00025361]
[1724168286220,0.588378,59177.0,59176.0,0.00125361]
[1724168286522,0.5198,59177.0,59176.0,0.00125361]
[1724168287225,0.587378,59177.0,59176.0,0.00125361]
[1724168287422,0.52820994,59177.0,59176.0,0.06983261]
[1724168288227,0.52820994,59177.0,59176.0,0.06883261]
[1724168288422,0.52820994,59177.0,59176.0,0.06983261]
[1724168289122,0.16740994,59177.0,59176.0,0.06983261]
[1724168290022,0.16740994,59177.0,59176.0,0.12016146]
[1724168290227,0.16740994,59177.0,59176.0,0.06983261]
[1724168291026,0.16740994,59177.0,59176.0,0.00225361]
[1724168291828,0.23498794,59177.0,59176.0,0.00225361]
[1724168292132,0.23498794,59177.0,59176.0,0.05271404]
[1724168292529,0.16740994,59177.0,59176.0,0.12029304]
[1724168293126,0.12514911,59177.0,59176.0,0.06983261]
[1724168293326,0.12514911,59177.0,59176.0,0.43063261]
[1724168294128,0.12514911,59177.0,59176.0,0.48108484]